bitfinex/quotes_ETHUSD_20250808
["timestamp","ask_amount","ask_price","bid_price","bid_amount"]
[1754692899124,0.002,4031.0,4030.9,2.48083554]
[1754692899502,0.4585,4031.0,4030.6,2.62490271]
[1754692899706,0.4585,4031.0,4030.9,2.48083554]
[1754692901330,0.002,4031.0,4030.9,2.48083554]
[1754692901713,0.002,4031.0,4030.9,2.91053554]
[1754692906732,0.4585,4031.0,4030.9,2.48083554]
[1754692906919,0.90035,4031.0,4030.5,0.124]
[1754692907121,0.124,4030.8,4030.3,0.001]
[1754692907322,0.4565,4030.9,4030.3,0.001]
[1754692907323,0.124,4030.4,4030.3,0.001]
[1754692907504,4.82420835,4030.4,4030.3,0.001]
[1754692907705,7.30535166,4030.4,4030.3,0.001]
[1754692907928,7.88585166,4030.4,4030.3,0.001]
[1754692908309,5.40470835,4030.4,4030.3,0.001]
[1754692908720,5.28070835,4030.4,4030.3,0.001]
[1754692912227,3.957,4030.4,4030.3,0.001]
[1754692912535,0.124,4030.4,4030.3,0.001]
[1754692912860,3.833,4030.4,4030.3,0.4307]
[1754692913358,3.833,4030.4,4030.3,2.91190487]
[1754692913725,3.833,4030.4,4030.3,0.4307]
[1754692914860,3.833,4030.4,4030.3,0.001]
[1754692915048,4.333,4030.4,4030.3,0.001]
[1754692916424,3.833,4030.4,4030.3,2.48220487]
[1754692916865,3.833,4030.4,4030.3,0.001]
[1754692918056,4.333,4030.4,4030.3,0.001]
[1754692921127,7.50794648,4030.4,4030.3,0.001]
[1754692921366,7.63194648,4030.4,4030.3,0.001]
[1754692922075,19.69901798,4030.4,4030.3,0.001]
[1754692922252,2.48136562,4030.1,4029.8,0.001]
[1754692922566,2.48136562,4030.1,4027.5,0.001]
[1754692922567,6.03206706,4028.9,4027.5,0.001]
[1754692922861,0.55,4028.4,4027.5,0.001]
[1754692923064,0.124,4028.2,4027.9,2.48263301]
[1754692923245,3.955,4028.2,4027.7,0.4512]
[1754692923440,3.955,4028.2,4028.1,0.5366]
[1754692923844,3.955,4028.2,4028.1,2.58256001]
[1754692924052,0.124,4028.2,4028.1,3.01916001]
[1754692924248,3.955,4028.2,4028.1,0.5366]
[1754692925049,0.124,4028.2,4028.1,3.32119234]
[1754692925253,0.124,4028.2,4028.1,3.77239234]
[1754692925648,0.55,4029.0,4028.1,3.77239234]
[1754692925649,5.48189202,4029.2,4028.4,2.48235639]
[1754692925869,0.124,4028.5,4028.4,0.4366]
[1754692926067,3.956,4028.5,4028.4,2.91897513]
[1754692926662,3.956,4028.5,4028.4,0.4366]
[1754692926863,3.956,4028.5,4028.4,2.91897513]
[1754692927796,3.956,4028.5,4028.4,3.37017513]
[1754692927797,0.124,4028.5,4028.4,3.37017513]
[1754692928075,3.956,4028.8,4028.7,2.48219028]
[1754692928457,3.956,4028.8,4028.7,0.4366]
[1754692929044,3.956,4028.8,4028.7,2.91879028]
[1754692931476,0.124,4028.8,4028.7,3.36999028]
[1754692937172,0.124,4028.8,4028.7,2.91879028]
[1754692938992,0.126,4028.8,4028.7,2.91879028]
[1754692949794,0.002,4028.8,4028.7,12.60057842]
[1754692950261,0.002,4028.8,4028.7,16.42857842]
[1754692951284,0.002,4028.8,4028.7,7.91150692]
[1754692953506,0.002,4028.8,4028.7,2.60619028]
[1754692953672,0.4817,4028.8,4028.7,2.48219028]
[1754692954666,0.002,4028.8,4028.7,2.48219028]
[1754692954872,0.002,4028.8,4028.7,2.91769028]
[1754692962182,0.4817,4028.8,4028.7,2.48219028]
[1754692963797,0.4817,4028.8,4028.6,2.48323452]
[1754692963993,0.002,4028.8,4028.6,2.48323452]
[1754692964200,0.4797,4028.7,4028.6,2.48323452]
[1754692966102,0.002,4028.8,4028.6,2.48323452]
[1754692966303,0.002,4028.8,4028.6,0.001]
[1754692966505,0.6037,4028.7,4028.6,0.001]
[1754692968007,0.6037,4028.7,4028.6,2.48325189]
[1754692968414,0.124,4028.7,4028.6,0.001]
[1754692968611,0.124,4028.7,4028.6,2.48325189]
[1754692968911,0.124,4028.7,4028.6,0.001]
[1754692970393,2.60619028,4028.7,4028.6,0.001]
[1754692970696,3.98051303,4028.7,4028.6,0.001]
[1754692971519,1.62232275,4028.7,4028.6,0.001]
[1754692971727,1.49832275,4028.7,4028.6,0.001]
[1754692975118,1.01862275,4028.7,4028.6,0.001]
[1754692975709,1.50902275,4028.7,4028.6,0.001]
[1754692976822,0.6144,4028.7,4028.6,0.001]
[1754692978089,0.124,4028.7,4028.6,0.001]
[1754692978324,0.6144,4028.7,4028.6,0.001]
[1754692979194,0.124,4028.7,4028.6,0.001]
[1754692981833,0.124,4028.7,4028.6,3.39415189]
[1754692982135,3.948,4028.7,4028.6,3.39415189]
[1754692982298,0.124,4028.7,4028.6,3.39415189]
[1754692982501,0.002,4028.8,4028.7,2.48219028]
[1754692982719,0.002,4028.8,4028.7,3.39309028]
[1754692983136,0.002,4028.8,4028.7,2.93059028]
[1754692983831,0.002,4028.8,4028.7,0.4484]
[1754692984136,3.826,4028.8,4028.7,0.4484]
[1754692984300,0.002,4028.8,4028.7,2.93059028]
[1754692984498,3.825,4028.8,4028.6,2.48324272]
[1754692984805,3.825,4028.8,4028.6,2.93164272]
[1754692985029,0.745554,4028.7,4028.6,2.48324272]
[1754692985404,0.745554,4028.7,4028.6,2.94574272]
[1754692985610,0.745554,4028.7,4028.6,3.39414272]
[1754692989241,3.825,4028.8,4028.7,2.48219028]
[1754692989630,3.825,4028.8,4028.7,2.93059028]
[1754692989932,4.570554,4028.8,4028.7,2.93059028]
[1754692991529,3.825,4028.8,4028.7,2.93059028]
[1754692994471,4.570553,4028.8,4028.7,2.93059028]
[1754692996552,3.825,4028.8,4028.7,2.93059028]
[1754692997683,4.2944554,4028.8,4028.6,0.001]
[1754692997830,2.97259028,4028.7,4028.6,0.001]
[1754692998176,3.64659028,4028.7,4028.6,0.001]
[1754692998371,4.20882281,4028.7,4028.6,0.001]
[1754692998534,6.27246537,4028.7,4028.6,0.001]
[1754692998875,6.241438,4028.7,4028.6,0.001]
[1754693000073,6.117438,4028.7,4028.6,0.001]
[1754693000275,4.15479544,4028.7,4028.6,0.001]
[1754693006572,1.67260516,4028.7,4028.6,0.001]
[1754693006743,0.63220516,4028.7,4028.6,0.001]
[1754693006950,3.921,4028.7,4028.6,0.4571]
[1754693007769,0.101,4028.7,4028.6,0.4571]
[1754693007972,3.82,4028.7,4028.6,0.9378]
[1754693008267,3.82,4028.7,4028.6,0.4571]
[1754693009635,4.31589052,4028.7,4028.6,0.001]
[1754693009876,4.77209052,4028.7,4028.6,0.001]
[1754693010081,5.51773852,4028.7,4028.6,0.001]
[1754693010254,7.9999288,4028.7,4028.6,0.001]
[1754693010583,5.51773852,4028.7,4028.6,0.001]
[1754693011646,5.06153852,4028.7,4028.6,0.001]
[1754693013353,4.565648,4028.7,4028.6,0.4571]
[1754693015166,0.745648,4028.7,4028.6,0.4571]
[1754693015366,4.688648,4028.7,4028.6,2.93935189]
[1754693015576,4.688648,4028.7,4028.6,3.42005189]
[1754693016582,0.869648,4028.7,4028.6,2.93935189]
[1754693016781,3.943,4028.7,4028.6,3.42005189]
[1754693017083,0.124,4028.7,4028.6,4.0102934]
[1754693017283,3.82,4028.8,4028.7,2.48219028]
[1754693017778,3.82,4028.8,4028.7,3.41899028]
[1754693019183,0.002,4028.8,4028.7,3.41899028]
[1754693020753,0.747485,4028.8,4028.7,3.41899028]
[1754693021644,0.002,4028.8,4028.7,3.41899028]
[1754693021848,0.747486,4028.8,4028.7,4.32887497]
[1754693022353,0.002,4028.8,4028.7,4.32887497]
[1754693025498,0.002,4028.8,4028.7,3.41899028]
[1754693029704,0.002,4028.8,4028.7,2.93829028]
[1754693029881,0.002,4028.8,4028.6,2.48325189]
[1754693029882,0.002,4028.8,4028.6,0.001]
[1754693030206,0.002,4028.8,4028.7,2.48219028]
[1754693030778,0.002,4028.8,4028.6,2.48324164]
[1754693030979,0.4582,4028.8,4028.6,2.48324164]
[1754693031302,0.5802,4028.7,4028.6,0.001]
[1754693031469,1.325787,4028.7,4028.6,2.48325189]
[1754693032786,0.869587,4028.7,4028.6,2.48325189]
[1754693036317,0.869587,4028.7,4028.6,2.94455189]
[1754693039410,4.683587,4028.7,4028.6,2.94455189]
[1754693039616,4.683587,4028.7,4028.6,3.42445189]
[1754693040793,3.938,4028.7,4028.6,3.42445189]
[1754693042397,0.002,4028.8,4028.7,2.48219028]
[1754693042603,3.816,4028.8,4028.7,2.48219028]
[1754693042974,3.816,4028.8,4028.7,2.94349028]
[1754693043112,0.002,4028.8,4028.7,2.94349028]
[1754693043290,3.816,4028.8,4028.7,2.94349028]
[1754693043926,3.816,4028.8,4028.7,3.42339028]
[1754693044124,0.002,4028.8,4028.7,12.531126]
[1754693044295,0.002,4028.8,4028.7,12.655126]
[1754693045830,0.002,4028.8,4028.7,4.1380545]
[1754693046121,0.002,4028.8,4028.7,7.9510545]
[1754693047618,0.002,4028.8,4028.7,16.468126]
[1754693049535,0.002,4029.3,4029.2,2.48188225]
[1754693049736,0.002,4029.3,4029.2,14.93495375]
[1754693049937,0.002,4029.3,4029.2,15.87615375]
[1754693054520,1e-08,4029.3,4029.2,18.87615375]
[1754693056525,1e-08,4029.3,4029.2,15.06415375]
[1754693056729,1e-08,4029.3,4029.2,19.46581797]
[1754693059448,1e-08,4029.3,4029.2,18.98591797]
[1754693059859,1e-08,4029.3,4029.2,15.17491797]
[1754693060163,1e-08,4029.3,4029.2,19.46481797]
[1754693060820,1e-08,4029.3,4029.2,10.00654647]
[1754693061863,0.49480001,4029.3,4029.2,9.41588225]
[1754693064469,0.49480001,4029.3,4029.2,6.41588225]
[1754693064470,1e-08,4029.3,4029.2,6.41588225]
[1754693064649,0.46050001,4029.3,4029.2,6.41588225]
[1754693066432,0.46050001,4029.3,4029.2,2.60588225]
[1754693068571,0.46050001,4029.3,4029.2,2.48188225]
[1754693069370,1e-08,4029.3,4029.2,2.48188225]
[1754693069671,1e-08,4029.3,4029.2,3.06428225]
[1754693072338,1e-08,4029.3,4029.2,3.52588225]
[1754693074338,1e-08,4029.3,4029.2,2.94028225]
[1754693074544,1e-08,4029.3,4029.2,6.52588225]
[1754693075592,1e-08,4029.7,4029.6,2.48163589]
[1754693075872,1e-08,4029.7,4029.6,18.90304291]
[1754693076075,1e-08,4029.7,4029.6,19.82304291]
[1754693076578,1e-08,4029.7,4029.6,19.94704291]
[1754693078454,1e-08,4029.7,4029.6,19.48544291]
[1754693079745,1e-08,4029.7,4029.6,19.94704291]
[1754693079946,1e-08,4029.7,4029.6,10.96737141]
[1754693081290,1e-08,4029.7,4029.6,11.42897141]
[1754693081584,1e-08,4029.7,4029.6,10.96737141]
[1754693082367,1e-08,4029.7,4029.6,11.42897141]
[1754693089363,1e-08,4030.2,4030.0,2.48138957]
[1754693089591,1e-08,4030.2,4030.1,18.06393939]
[1754693089792,0.002,4031.3,4030.5,8.5170715]
[1754693090062,0.002,4031.3,4030.8,2.48089709]
[1754693090262,0.002,4031.3,4030.8,6.40989709]
[1754693090462,0.002,4031.3,4030.8,6.86829709]
[1754693090785,0.002,4031.3,4030.8,7.34873079]
[1754693091270,0.002,4031.3,4030.9,10.99790704]
[1754693091470,0.002,4031.3,4030.9,11.91790704]
[1754693091878,0.002,4031.3,4031.2,2.48065092]
[1754693092077,0.002,4031.3,4031.2,6.28565092]
[1754693092272,1e-08,4031.3,4031.2,11.42598644]
[1754693093099,1e-08,4031.3,4031.2,10.96438644]
[1754693093400,1e-08,4031.3,4031.2,6.70098644]
[1754693093571,1e-08,4031.3,4031.2,10.50598644]
[1754693094484,1e-08,4031.3,4031.2,10.50498644]
[1754693094485,0.47340001,4031.3,4031.2,10.50498644]
[1754693094670,0.47340001,4031.3,4031.2,9.40865092]
[1754693095067,1e-08,4031.3,4031.2,5.60465092]
[1754693095280,0.47340001,4031.3,4031.2,5.60465092]
[1754693095586,1e-08,4031.3,4031.2,5.60465092]
[1754693095769,0.47340001,4031.3,4031.2,5.60465092]
[1754693096471,1e-08,4031.3,4031.2,5.60465092]
[1754693096668,1e-08,4031.3,4031.2,6.79358935]
[1754693097370,1e-08,4031.3,4031.2,7.26118935]
[1754693099635,1e-08,4031.3,4031.2,7.73008935]
[1754693100001,0.002,4031.5,4031.2,7.73008935]
[1754693100002,1e-08,4031.5,4031.4,2.48052785]
[1754693100202,0.002,4031.8,4031.5,2.48046632]
[1754693100402,0.002,4031.8,4031.7,2.48034327]
[1754693100804,0.002,4031.8,4031.7,6.41684327]
[1754693101206,0.002,4031.8,4031.7,6.54084327]
[1754693101495,0.002,4031.8,4031.7,7.7297817]
[1754693102326,0.124,4032.8,4032.1,2.48009721]
[1754693102528,0.5734,4032.9,4032.1,14.79916871]
[1754693102698,0.4734,4032.5,4032.1,14.92316871]
[1754693103125,0.4734,4032.5,4032.1,11.12116871]
[1754693103333,0.4734,4032.5,4032.1,15.55913846]
[1754693103851,0.4754,4032.2,4032.1,2.60409721]
[1754693104018,0.5994,4032.2,4032.1,2.60409721]
[1754693104214,0.5994,4032.2,4032.1,2.48009721]
[1754693105701,0.4754,4032.2,4032.1,2.48009721]
[1754693107128,0.5994,4032.2,4032.1,2.48009721]
[1754693107627,0.5994,4032.2,4032.0,2.48011738]
[1754693107834,0.126,4032.2,4032.1,2.48009721]
[1754693108055,0.126,4032.2,4031.8,2.48023914]
[1754693108056,0.002,4032.2,4031.8,2.48023914]
[1754693108247,0.002,4032.2,4031.3,0.124]
[1754693108248,0.124,4032.0,4031.3,0.124]
[1754693108625,0.124,4031.6,4031.2,2.48063483]
[1754693108944,0.124,4031.6,4031.3,2.4805811]
[1754693108945,0.5974,4031.5,4031.3,2.4805811]
[1754693109142,0.5974,4031.4,4030.9,3.801]
[1754693109346,0.5974,4031.3,4031.1,2.48069168]
[1754693109543,0.124,4031.3,4031.2,2.48065092]
[1754693110100,0.5974,4031.3,4031.2,2.48065092]
[1754693111017,0.7214,4031.3,4030.8,0.124]
[1754693111234,0.7214,4031.3,4030.6,3.802]
[1754693111235,0.5974,4031.2,4030.6,3.802]
[1754693111539,0.4734,4031.1,4030.5,2.6050399]
[1754693111724,0.5974,4031.1,4030.1,7.80946715]
[1754693111934,0.124,4030.9,4030.7,2.48094769]
[1754693112112,0.124,4030.9,4030.8,2.48089709]
[1754693112615,0.5974,4030.9,4030.8,2.48089709]
[1754693122965,0.5974,4030.9,4030.3,0.125]
[1754693123272,1.50884715,4030.8,4030.3,0.001]
[1754693123435,0.4734,4030.8,4030.3,0.001]
[1754693123763,0.00842239,4031.1,4031.0,2.480774]
[1754693124055,0.00842239,4031.1,4031.0,7.23066047]
[1754693124258,0.00842239,4031.1,4031.0,10.218274]
[1754693125929,0.4656,4032.2,4032.1,2.48009721]
[1754693127148,0.4656,4032.2,4032.0,2.48014914]
[1754693127461,0.4656,4032.2,4032.1,2.48009721]
[1754693127462,0.002,4032.2,4032.1,2.48009721]
[1754693128367,0.4656,4032.2,4032.1,2.48009721]
[1754693128937,0.002,4032.2,4032.1,2.48009721]
[1754693129136,0.002,4032.2,4032.1,2.91379721]
[1754693130367,0.002,4032.2,4032.0,2.48014848]
[1754693130737,0.4636,4032.1,4032.0,2.48014848]
[1754693131361,0.002,4032.2,4032.1,2.48009721]
[1754693132261,0.002,4032.2,4032.1,2.91379721]
[1754693132432,0.002,4032.2,4032.1,3.91449178]
[1754693133146,0.002,4032.2,4032.1,4.03849178]
[1754693133545,0.002,4032.2,4032.1,3.57719178]
[1754693134281,0.002,4032.2,4032.1,2.91379721]
[1754693135047,0.002,4032.2,4032.1,3.37509721]
[1754693136140,0.002,4032.2,4032.1,7.17409721]
[1754693137870,0.002,4032.2,4032.1,6.71279721]
[1754693138238,0.002,4032.2,4032.1,7.17409721]
[1754693140053,0.002,4032.2,4032.1,6.71279721]
[1754693140255,0.002,4032.2,4032.1,7.17409721]
[1754693143993,0.002,4032.6,4032.5,2.4798512]
[1754693144150,0.002,4032.6,4032.5,6.2778512]
[1754693144349,0.002,4032.6,4032.5,6.8355512]
[1754693145895,0.002,4032.6,4032.5,7.2968512]
[1754693146457,1e-08,4032.6,4032.5,7.2968512]
[1754693146859,1e-08,4032.7,4032.6,2.47978971]
[1754693147100,1e-08,4032.7,4032.6,10.99686121]
[1754693147300,1e-08,4032.7,4032.6,11.45816121]
[1754693147605,0.1,4032.9,4032.8,2.47966673]
[1754693147807,0.1,4032.9,4032.8,6.40166673]
[1754693147954,0.002,4033.1,4033.0,2.47954376]
[1754693148357,0.002,4033.1,4033.0,7.17254376]
[1754693148562,2.10285439,4034.0,4033.8,2.47905201]
[1754693149264,0.5636,4033.9,4033.8,2.47905201]
[1754693156619,0.1,4033.9,4033.8,2.47905201]
[1754693159013,0.5962,4033.9,4033.8,2.47905201]
[1754693159198,0.1,4033.9,4033.8,2.47905201]
[1754693160327,0.5962,4033.9,4033.8,2.47905201]
[1754693160701,1.25820544,4033.9,4033.4,0.124]
[1754693161023,1.25820544,4033.9,4032.0,6.79014588]
[1754693161024,0.124,4033.5,4033.3,2.47935216]
[1754693161222,0.124,4033.5,4032.7,0.124]
[1754693161223,4.2922,4033.4,4032.3,3.0]
[1754693161425,0.124,4032.9,4032.8,2.47966673]
[1754693161595,0.6202,4032.9,4032.8,2.47966673]
[1754693162692,0.6202,4032.9,4032.4,2.47986685]
[1754693162922,0.4962,4032.8,4032.5,2.47981599]
[1754693163165,0.4962,4032.8,4032.1,0.5592]
[1754693163166,0.4962,4032.7,4032.2,2.48003571]
[1754693163302,0.124,4032.5,4032.4,2.47986081]
[1754693163505,0.6202,4032.5,4032.4,2.47986081]
[1754693165593,0.6202,4032.5,4032.2,2.47997746]
[1754693165814,0.4962,4032.4,4032.3,2.4799742]
[1754693166023,3.796,4032.7,4032.3,2.4799742]
[1754693166220,0.124,4032.4,4032.3,2.4799742]
[1754693166822,0.124,4032.4,4032.3,2.9151742]
[1754693167536,0.124,4032.4,4032.3,2.4799742]
[1754693170504,0.124,4032.4,4032.3,2.9151742]
[1754693173149,0.124,4032.4,4032.3,3.3924742]
[1754693174453,0.124,4032.4,4032.3,2.9151742]
[1754693174661,0.124,4032.4,4032.3,2.9161742]
[1754693175856,0.124,4032.4,4032.3,2.4809742]
[1754693176525,0.124,4032.4,4032.3,2.9161742]
[1754693178258,0.124,4032.4,4032.3,3.3934742]
[1754693179526,0.124,4032.4,4032.3,2.9161742]
[1754693183463,0.124,4032.4,4032.3,2.4809742]
[1754693184881,0.5912,4032.4,4032.3,2.4809742]
[1754693186971,0.5912,4032.4,4032.3,0.001]
[1754693187172,1.1412,4032.4,4032.3,0.001]
[1754693187373,1.2652,4032.4,4032.3,0.001]
[1754693187545,1.63969801,4032.4,4032.3,0.001]
[1754693187873,5.31069801,4032.4,4032.3,0.001]
[1754693193959,4.84349801,4032.4,4032.3,0.001]
[1754693194349,3.919,4032.4,4032.3,2.4809742]
[1754693194680,3.919,4032.4,4032.3,2.9390742]
[1754693194984,3.919,4032.4,4032.3,3.4327742]
[1754693195293,3.795,4032.7,4032.6,2.47978971]
[1754693195789,3.919,4032.7,4032.6,2.93788971]
[1754693197555,3.919,4032.7,4032.6,3.43158971]
[1754693199388,3.919,4032.7,4032.6,4.02283995]
[1754693199966,0.124,4032.7,4032.6,4.02283995]
[1754693201489,0.124,4032.7,4032.6,3.52913995]
[1754693202085,0.124,4032.7,4032.6,4.02283995]
[1754693204793,0.124,4032.7,4032.6,3.52913995]
[1754693204995,0.124,4032.7,4032.6,4.02283995]
[1754693205570,3.794,4033.1,4033.0,2.47954376]
[1754693205969,4.3852,4033.1,4033.0,2.47954376]
[1754693207401,3.918,4033.1,4033.0,2.47954376]
[1754693207597,0.124,4033.1,4033.0,2.93764376]
[1754693207892,0.124,4033.1,4033.0,4.02244423]
[1754693208989,0.00842026,4033.7,4033.6,2.47917493]
[1754693209191,3.80142026,4033.7,4033.6,2.47917493]
[1754693209494,0.124,4033.7,4033.6,2.47917493]
[1754693209795,3.917,4033.7,4033.6,2.47917493]
[1754693210096,4.3842,4033.7,4033.6,2.47917493]
[1754693210303,3.917,4033.7,4033.6,2.47917493]
[1754693210476,3.917,4033.7,4033.2,2.47939123]
[1754693210682,0.4672,4033.6,4033.3,2.47935933]
[1754693210883,0.4672,4033.5,4033.3,2.47935933]
[1754693211280,0.4672,4033.5,4033.3,2.47934613]
[1754693211494,0.124,4033.4,4033.1,0.4581]
[1754693212277,0.124,4033.4,4033.3,2.47935933]
[1754693213213,0.124,4033.4,4033.3,2.93745933]
[1754693214690,0.124,4033.4,4033.3,2.47935933]
[1754693215178,0.124,4033.4,4033.3,2.95155933]
[1754693217015,0.124,4033.4,4033.3,3.42435933]
[1754693217585,0.126,4033.4,4033.3,2.95155933]
[1754693218086,0.126,4033.4,4033.3,3.42435933]
[1754693218482,0.002,4033.4,4033.3,4.01474311]
[1754693218678,0.002,4033.4,4033.3,0.59038378]
[1754693218901,0.002,4033.4,4033.1,2.47946941]
[1754693218902,0.4533,4033.4,4033.1,2.47946941]
[1754693219104,0.4533,4033.4,4033.3,2.47935933]
[1754693219300,0.002,4033.4,4033.3,2.47935933]
[1754693219511,0.126,4033.4,4033.3,2.47935933]
[1754693220014,0.126,4033.4,4033.3,2.95155933]
[1754693220416,0.126,4033.4,4033.3,2.47935933]
[1754693220789,0.5773,4033.4,4033.3,2.47935933]
[1754693222482,0.5773,4033.4,4032.7,0.124]
[1754693222483,0.126,4033.4,4032.7,0.124]
[1754693222686,0.4513,4033.3,4032.4,0.4722]
[1754693222905,0.4513,4033.3,4032.9,2.47956101]
[1754693223252,0.4513,4033.2,4033.0,2.47952856]
[1754693223388,0.002,4033.4,4032.6,0.4732]
[1754693223716,3.791,4033.3,4033.2,2.4794208]
[1754693223887,0.126,4033.4,4033.2,2.4794208]
[1754693223888,0.002,4033.4,4033.3,2.47935933]
[1754693224296,0.002,4033.4,4033.3,3.42435933]
[1754693224496,0.102,4033.9,4033.6,2.47913515]
[1754693224696,0.102,4033.9,4033.8,2.60305201]
[1754693225119,0.102,4033.9,4033.8,2.47905201]
[1754693225691,0.102,4033.9,4033.8,2.95125201]
[1754693225983,0.102,4033.9,4033.8,3.97949073]
[1754693229592,0.102,4033.9,4033.8,12.49656223]
[1754693229905,0.002,4034.1,4034.0,2.4789291]
[1754693230111,0.002,4034.1,4034.0,6.2699291]
[1754693230317,0.002,4034.1,4034.0,7.2149291]
[1754693230620,0.002,4034.1,4034.0,8.22405648]
[1754693234631,1e-08,4034.1,4034.0,8.22405648]
[1754693234834,1e-08,4034.1,4034.0,11.22405648]
[1754693235030,1e-08,4034.3,4034.2,13.9958777]
[1754693235237,1e-08,4034.3,4034.2,17.7858777]
[1754693235398,1e-08,4034.3,4034.2,18.04621978]
[1754693235599,1e-08,4034.3,4034.2,18.99121978]
[1754693235998,1e-08,4034.3,4034.2,19.11521978]
[1754693244742,1e-08,4034.3,4034.2,37.90152878]
[1754693245437,0.1,4034.9,4034.8,2.47843759]
[1754693245639,0.1,4034.9,4034.8,6.82187631]
[1754693245806,0.1,4034.9,4034.8,6.94587631]
[1754693246005,0.1,4034.9,4034.8,7.41867631]
[1754693246211,0.1,4034.9,4034.8,7.87727631]
[1754693246734,1e-08,4035.0,4034.9,2.47837616]
[1754693246946,1e-08,4035.0,4034.9,7.41890354]
[1754693247314,1e-08,4035.0,4034.9,11.65108554]
[1754693247548,1e-08,4035.0,4034.9,10.38843454]
[1754693247746,1e-08,4035.0,4034.9,7.41890354]
[1754693249036,1e-08,4035.0,4034.9,6.96030354]
[1754693250817,1e-08,4035.0,4034.9,6.48750354]
[1754693252153,1e-08,4035.0,4034.9,14.55449554]
[1754693252470,1e-08,4035.0,4034.9,15.56309554]
[1754693256882,1e-08,4035.0,4034.9,6.96030354]
[1754693257084,1e-08,4035.0,4034.9,10.27450354]
[1754693257237,1e-08,4035.0,4034.9,6.48750354]
[1754693257441,0.45590001,4035.0,4034.9,10.27450354]
[1754693257743,1e-08,4035.0,4034.9,5.47837616]
[1754693257948,1e-08,4035.0,4034.9,9.26437616]
[1754693258149,0.45590001,4035.0,4034.9,9.26437616]
[1754693258668,1e-08,4035.0,4034.9,9.26437616]
[1754693259050,1e-08,4035.0,4034.9,9.73717616]
[1754693259252,1e-08,4035.0,4034.9,11.00664562]
[1754693260180,1e-08,4035.0,4034.9,11.46524562]
[1754693260838,1e-08,4035.0,4034.9,11.00664562]
[1754693261468,1e-08,4035.0,4034.9,25.12838162]
[1754693261657,1e-08,4035.0,4034.9,15.87596662]
[1754693262371,1e-08,4035.0,4034.9,15.99996662]
[1754693264157,1e-08,4035.5,4035.4,2.47806908]
[1754693264375,1e-08,4035.5,4035.4,18.02894749]
[1754693264579,1e-08,4035.5,4035.4,18.15294749]
[1754693264784,1e-08,4035.5,4035.4,18.62574749]
[1754693265883,1e-08,4035.5,4035.4,9.63587599]
[1754693265884,0.45590001,4035.5,4035.4,9.63587599]
[1754693266549,1e-08,4035.5,4035.4,9.63587599]
[1754693266749,1e-08,4035.5,4035.4,18.62574749]
[1754693267780,1e-08,4035.5,4035.4,18.15294749]
[1754693269482,1e-08,4035.5,4035.4,9.63587599]
[1754693269787,0.45590001,4035.5,4035.4,9.63587599]
[1754693270983,1e-08,4035.5,4035.4,9.63587599]
[1754693271283,1e-08,4035.5,4035.4,10.10867599]
[1754693272210,1e-08,4035.5,4035.4,19.08434749]
[1754693273669,1e-08,4035.5,4035.4,30.41872149]
[1754693274599,1e-08,4035.5,4035.4,29.48732149]
[1754693274801,1e-08,4035.5,4035.4,29.94462149]
[1754693276002,1e-08,4035.5,4035.4,29.35621249]
[1754693276203,1e-08,4035.5,4035.4,27.49682249]
[1754693276979,1e-08,4035.5,4035.4,18.61024749]
[1754693277308,1e-08,4035.5,4035.4,18.15294749]
[1754693277806,1e-08,4035.5,4035.4,18.61024749]
[1754693278312,1e-08,4035.5,4035.4,21.82324149]
[1754693278722,1e-08,4035.5,4035.4,22.29964149]
[1754693279911,1e-08,4035.5,4035.4,19.08664749]
[1754693280313,1e-08,4035.5,4035.4,25.37860349]
[1754693280844,0.002,4036.3,4036.2,2.47757791]
[1754693281124,0.002,4036.3,4036.2,15.08728122]
[1754693281337,0.002,4036.3,4036.2,18.66858122]
[1754693281702,0.002,4036.3,4036.2,18.21128122]
[1754693282225,0.4733,4036.3,4036.2,9.69420972]
[1754693282528,0.4733,4036.3,4036.2,9.38657791]
[1754693283386,0.4733,4036.3,4036.2,5.60157791]
[1754693283594,0.5993,4036.3,4036.2,9.38557791]
[1754693284026,0.4733,4036.3,4036.2,6.38557791]
[1754693284328,0.002,4036.3,4036.2,2.60157791]
[1754693284510,0.002,4036.3,4036.2,7.62450157]
[1754693285021,0.002,4036.3,4036.2,8.08180157]
[1754693285221,0.002,4036.3,4036.2,11.08180157]
[1754693286525,0.002,4036.3,4036.2,10.62450157]
[1754693286726,0.4733,4036.3,4036.2,10.62450157]
[1754693287244,0.4733,4036.3,4036.2,9.38557791]
[1754693288140,0.5993,4036.3,4036.2,9.38557791]
[1754693290246,0.4733,4036.3,4036.2,9.38557791]
[1754693290944,0.4733,4036.3,4036.2,6.38557791]
[1754693292645,0.4733,4036.3,4036.2,2.60157791]
[1754693292823,0.4733,4036.3,4036.2,6.38557791]
[1754693298846,0.4733,4036.3,4036.2,2.60157791]
[1754693299051,0.4733,4036.3,4036.2,2.47757791]
[1754693301559,0.5993,4036.3,4035.3,0.4573]
[1754693301728,0.4713,4036.2,4035.7,2.47787985]
[1754693301931,0.4713,4036.2,4035.7,6.26187985]
[1754693301932,0.124,4036.1,4035.7,6.26187985]
[1754693302133,0.4713,4036.0,4035.7,6.26187985]
[1754693302342,0.002,4036.3,4034.9,0.001]
[1754693302343,0.5973,4035.9,4034.9,0.001]
[1754693302566,0.5973,4035.8,4035.2,2.47818142]
[1754693302748,0.4713,4035.7,4035.3,2.47812842]
[1754693303538,0.4713,4035.6,4034.9,0.001]
[1754693303742,0.4713,4035.6,4035.1,2.47824561]
[1754693303743,0.124,4035.4,4035.1,2.47824561]
[1754693304271,0.4713,4035.3,4035.1,2.47824561]